bitfinex/quotes_BTCUSD_20250328
["timestamp","ask_amount","ask_price","bid_price","bid_amount"]
[1743125126506,4.4e-07,87305.0,87304.0,0.834978]
[1743125127575,4.4e-07,87305.0,87304.0,0.59444]
[1743125127576,0.07990044,87305.0,87304.0,0.59444]
[1743125127821,0.10782276,87305.0,87304.0,0.59444]
[1743125128866,0.33690376,87305.0,87303.0,0.000339]
[1743125129037,0.058054,87304.0,87303.0,0.000339]
[1743125129399,0.08597543,87304.0,87303.0,0.000339]
[1743125130752,0.09743601,87304.0,87303.0,0.000339]
[1743125131008,0.19070724,87304.0,87303.0,0.000339]
[1743125131423,0.09743601,87304.0,87303.0,0.000339]
[1743125132599,0.08597543,87304.0,87303.0,0.000339]
[1743125134874,0.09735672,87304.0,87303.0,0.000339]
[1743125138903,0.09752622,87304.0,87303.0,0.000339]
[1743125146386,0.05092622,87304.0,87303.0,0.000339]
[1743125153635,0.03947222,87304.0,87303.0,0.000339]
[1743125153829,0.02809093,87304.0,87303.0,0.000339]
[1743125154434,0.02809093,87304.0,87303.0,0.011793]
[1743125155012,0.0001695,87304.0,87303.0,0.011793]
[1743125157152,0.0001695,87304.0,87303.0,0.090593]
[1743125161028,0.0001695,87304.0,87303.0,0.11306955]
[1743125161451,0.0001695,87304.0,87303.0,0.090593]
[1743125162502,0.0001695,87304.0,87303.0,0.000339]
[1743125162720,0.26706759,87304.0,87303.0,0.000339]
[1743125162856,0.26859771,87304.0,87303.0,0.000339]
[1743125163264,0.03951371,87304.0,87303.0,0.000339]
[1743125164054,0.26859771,87304.0,87303.0,0.000339]
[1743125164728,0.34999771,87304.0,87303.0,0.000339]
[1743125168056,0.64999771,87304.0,87303.0,0.000339]
[1743125168457,0.87851299,87304.0,87303.0,0.000339]
[1743125168780,0.87851299,87304.0,87290.0,0.0003388]
[1743125168781,0.540573,87291.0,87290.0,0.0003388]
[1743125169000,0.744373,87291.0,87290.0,0.00038324]
[1743125169191,1.35020583,87291.0,87290.0,0.00038324]
[1743125169416,2.43992983,87291.0,87290.0,0.00038324]
[1743125169825,2.20077893,87291.0,87290.0,0.00038324]
[1743125169959,2.31503657,87291.0,87290.0,0.00038324]
[1743125170174,2.32957742,87291.0,87290.0,0.00038324]
[1743125170618,0.240637,87268.0,87267.0,0.10269495]
[1743125170806,0.56838894,87268.0,87267.0,0.10273939]
[1743125171978,0.56838894,87268.0,87267.0,0.10473939]
[1743125172849,0.56838894,87268.0,87267.0,0.10573939]
[1743125173253,0.56838894,87268.0,87267.0,0.10373939]
[1743125173612,0.57964961,87268.0,87267.0,0.00221384]
[1743125178344,0.6020457,87268.0,87267.0,0.00221384]
[1743125181938,0.6505457,87268.0,87267.0,0.00221384]
[1743125182123,0.74890255,87268.0,87267.0,0.00221384]
[1743125182329,0.86316019,87268.0,87267.0,0.00221384]
[1743125182506,1.41345619,87268.0,87267.0,0.00221384]
[1743125183206,1.09126834,87268.0,87267.0,0.00121384]
[1743125183502,1.09226834,87268.0,87267.0,0.00121384]
[1743125183683,1.09226834,87268.0,87267.0,0.00021384]
[1743125184084,1.09326834,87268.0,87267.0,0.00021384]
[1743125186907,1.10667659,87268.0,87267.0,0.00021384]
[1743125188128,1.09326834,87268.0,87267.0,0.00021384]
[1743125188530,0.76680334,87268.0,87267.0,0.00021384]
[1743125188874,1.28444834,87268.0,87267.0,0.00021384]
[1743125196187,0.98403334,87268.0,87267.0,0.00021384]
[1743125196716,0.85659334,87268.0,87267.0,0.00021384]
[1743125196905,0.98403334,87268.0,87267.0,0.00021384]
[1743125198443,0.84574334,87268.0,87267.0,0.00021384]
[1743125203512,1.13932634,87268.0,87267.0,0.00021384]
[1743125203741,1.08611334,87268.0,87267.0,0.00021384]
[1743125205284,1.12059138,87268.0,87267.0,0.00021384]
[1743125205655,0.88022138,87268.0,87267.0,0.00021384]
[1743125207302,1.11354238,87268.0,87267.0,0.00021384]
[1743125209352,1.43583038,87268.0,87267.0,0.00021384]
[1743125210337,0.88022138,87268.0,87267.0,0.00021384]
[1743125211845,0.39788674,87268.0,87267.0,0.00021384]
[1743125212193,0.39788674,87268.0,87267.0,0.31675384]
[1743125212194,0.02975194,87268.0,87267.0,0.31675384]
[1743125212312,0.02975194,87268.0,87267.0,0.30529484]
[1743125212503,0.02975194,87268.0,87267.0,0.07611384]
[1743125213471,0.02975194,87268.0,87267.0,0.30529484]
[1743125214746,0.02975194,87268.0,87267.0,0.07611384]
[1743125216905,0.02975194,87268.0,87267.0,0.30529484]
[1743125217515,0.02975194,87268.0,87267.0,0.31675384]
[1743125217902,0.02975194,87268.0,87267.0,0.36185384]
[1743125218328,0.002,87268.0,87267.0,0.36185384]
[1743125219349,0.002,87268.0,87267.0,0.47611148]
[1743125233619,0.242637,87268.0,87267.0,0.00021384]
[1743125234021,0.27180419,87268.0,87267.0,0.00021384]
[1743125234227,0.03116719,87268.0,87267.0,0.00021384]
[1743125237731,0.04262519,87268.0,87267.0,0.00021384]
[1743125238132,0.34262519,87268.0,87267.0,0.00021384]
[1743125259028,0.03116719,87268.0,87267.0,0.01167284]
[1743125265360,0.03116719,87268.0,87267.0,0.00021384]
[1743125267582,0.03116719,87268.0,87267.0,0.01167284]
[1743125268775,0.002,87268.0,87267.0,0.01167284]
[1743125269096,0.002,87268.0,87267.0,0.06017284]
[1743125270516,0.002,87268.0,87267.0,0.13597284]
[1743125271167,0.002,87268.0,87267.0,0.25023048]
[1743125276716,0.002,87268.0,87267.0,0.27369946]
[1743125280462,0.002,87268.0,87267.0,0.25023048]
[1743125283971,0.002,87268.0,87267.0,0.01167284]
[1743125298058,0.002,87268.0,87267.0,0.09317284]
[1743125298262,0.002,87268.0,87267.0,0.25423048]
[1743125305126,0.002,87268.0,87267.0,0.13997284]
[1743125305346,0.002,87268.0,87267.0,0.01167284]
[1743125313317,0.002,87268.0,87267.0,0.24085384]
[1743125313955,0.03113777,87268.0,87267.0,0.24085384]
[1743125314160,0.002,87268.0,87267.0,0.01167284]
[1743125314366,0.03113777,87268.0,87267.0,0.01167284]
[1743125314973,0.04259577,87268.0,87267.0,0.00021384]
[1743125321871,0.12019025,87268.0,87267.0,0.00021384]
[1743125322079,0.36577917,87268.0,87267.0,0.00021384]
[1743125322232,0.48897917,87268.0,87267.0,0.00021384]
[1743125323239,0.48797917,87268.0,87267.0,0.00021384]
[1743125323780,0.48897917,87268.0,87267.0,0.00021384]
[1743125324313,0.48797917,87268.0,87267.0,0.00021384]
[1743125324648,0.49097917,87268.0,87267.0,0.00021384]
[1743125325165,0.48797917,87268.0,87267.0,0.00021384]
[1743125325640,0.49097917,87268.0,87267.0,0.00021384]
[1743125327978,0.81479019,87268.0,87267.0,0.00021384]
[1743125328180,0.73011419,87268.0,87267.0,0.00021384]
[1743125328973,0.72711419,87268.0,87267.0,0.00021384]
[1743125329265,0.62320319,87268.0,87267.0,0.00021384]
[1743125329494,2.68979819,87268.0,87267.0,0.00021384]
[1743125329647,2.38863419,87268.0,87267.0,0.00021384]
[1743125329971,2.17565663,87268.0,87267.0,0.00021384]
[1743125330109,2.07506963,87268.0,87267.0,0.00021384]
[1743125330566,1.92054363,87268.0,87267.0,0.00021384]
[1743125332380,1.88432263,87268.0,87267.0,0.00021384]
[1743125333379,1.80020719,87268.0,87267.0,0.00021384]
[1743125333833,1.78224081,87268.0,87267.0,0.00021384]
[1743125337410,1.50817281,87268.0,87267.0,0.00021384]
[1743125337590,0.94580581,87268.0,87267.0,0.00021384]
[1743125340132,0.48503681,87268.0,87267.0,0.00021384]
[1743125340355,0.37077917,87268.0,87267.0,0.00021384]
[1743125363743,0.35932117,87268.0,87267.0,0.00021384]
[1743125363992,0.56531677,87268.0,87267.0,0.00021384]
[1743125364236,0.57677477,87268.0,87267.0,0.00021384]
[1743125364699,0.33613777,87268.0,87267.0,0.04871384]
[1743125366027,0.33613777,87268.0,87267.0,0.28935384]
[1743125366727,0.33613777,87268.0,87267.0,0.36745384]
[1743125367130,0.03613777,87268.0,87267.0,0.36745384]
[1743125367910,0.007,87268.0,87267.0,0.36745384]
[1743125368118,0.03610738,87268.0,87267.0,0.36745384]
[1743125368316,0.007,87268.0,87267.0,0.36745384]
[1743125368652,0.03610738,87268.0,87267.0,0.36745384]
[1743125368869,0.007,87268.0,87267.0,0.36745384]
[1743125369197,0.03612147,87268.0,87267.0,0.36745384]
[1743125369818,0.007,87268.0,87267.0,0.36745384]
[1743125372204,0.03612147,87268.0,87267.0,0.36745384]
[1743125374125,0.007,87268.0,87267.0,0.36745384]
[1743125381648,0.004,87268.0,87267.0,0.36745384]
[1743125381990,0.005,87268.0,87267.0,0.36745384]
[1743125383224,0.001,87268.0,87267.0,0.36745384]
[1743125383624,0.002,87268.0,87267.0,0.36745384]
[1743125390277,0.002,87268.0,87267.0,0.38891276]
[1743125402544,0.002,87268.0,87267.0,0.26231276]
[1743125413553,0.002,87268.0,87267.0,0.24085384]
[1743125416871,0.0606364,87268.0,87267.0,0.00021384]
[1743125417081,0.313458,87268.0,87267.0,0.00021384]
[1743125417493,0.34260769,87268.0,87267.0,0.00021384]
[1743125417893,0.98597469,87268.0,87267.0,0.00021384]
[1743125418113,1.10023233,87268.0,87267.0,0.00021384]
[1743125418323,1.11819929,87268.0,87267.0,0.00021384]
[1743125419230,1.24551929,87268.0,87267.0,0.00021384]
[1743125419442,1.48827693,87268.0,87267.0,0.00021384]
[1743125419658,1.49698759,87268.0,87267.0,0.00021384]
[1743125419870,1.49798759,87268.0,87267.0,0.00021384]
[1743125420081,1.24838195,87268.0,87267.0,0.00021384]
[1743125420513,1.25138195,87268.0,87267.0,0.00021384]
[1743125420722,1.24938195,87268.0,87267.0,0.00021384]
[1743125420944,1.25238195,87268.0,87267.0,0.00021384]
[1743125421175,0.74436295,87268.0,87267.0,0.00021384]
[1743125421516,1.82587095,87268.0,87267.0,0.00021384]
[1743125421748,1.79974095,87268.0,87267.0,0.00021384]
[1743125422112,1.77795295,87268.0,87267.0,0.00021384]
[1743125423385,2.195313,87268.0,87267.0,0.00021384]
[1743125423553,2.182884,87268.0,87267.0,0.00021384]
[1743125423876,2.159535,87268.0,87267.0,0.00021384]
[1743125424203,2.27379264,87268.0,87267.0,0.00021384]
[1743125424704,2.159535,87268.0,87267.0,0.00021384]
[1743125426773,2.144519,87268.0,87267.0,0.00021384]
[1743125427016,2.056553,87268.0,87267.0,0.00021384]
[1743125427232,1.916904,87268.0,87267.0,0.00021384]
[1743125441910,1.161723,87268.0,87267.0,0.00021384]
[1743125442115,2.093658,87268.0,87267.0,0.00021384]
[1743125443046,2.061644,87268.0,87267.0,0.00021384]
[1743125443765,1.804824,87268.0,87267.0,0.00021384]
[1743125443971,1.15772904,87268.0,87267.0,0.00021384]
[1743125444474,1.03040904,87268.0,87267.0,0.00021384]
[1743125444802,1.15772904,87268.0,87267.0,0.00021384]
[1743125445212,1.03040904,87268.0,87267.0,0.00021384]
[1743125445625,1.15772904,87268.0,87267.0,0.00021384]
[1743125446612,0.90744074,87268.0,87267.0,0.00021384]
[1743125446828,1.03476074,87268.0,87267.0,0.00021384]
[1743125447560,0.89128774,87268.0,87267.0,0.00021384]
[1743125448461,0.99901874,87268.0,87267.0,0.00021384]
[1743125448800,0.89128774,87268.0,87267.0,0.00021384]
[1743125449302,0.76396774,87268.0,87267.0,0.00021384]
[1743125449531,0.76396774,87268.0,87267.0,0.07831384]
[1743125451753,0.76396774,87268.0,87267.0,0.00021384]
[1743125451954,2.29247374,87268.0,87267.0,0.00021384]
[1743125452085,2.40673138,87268.0,87267.0,0.00021384]
[1743125452429,2.55545481,87268.0,87267.0,0.00021384]
[1743125452639,2.44119717,87268.0,87267.0,0.00021384]
[1743125452857,1.85588217,87268.0,87267.0,0.00021384]
[1743125453000,1.68934617,87268.0,87267.0,0.00021384]
[1743125453252,1.66885617,87268.0,87267.0,0.00021384]
[1743125454339,1.18409717,87268.0,87267.0,0.00021384]
[1743125454760,1.04001117,87268.0,87267.0,0.00021384]
[1743125454943,1.58359317,87268.0,87267.0,0.00021384]
[1743125455137,1.04001117,87268.0,87267.0,0.00021384]
[1743125455335,1.56757917,87268.0,87267.0,0.00021384]
[1743125455939,1.40927917,87268.0,87267.0,0.00021384]
[1743125456888,1.39528617,87268.0,87267.0,0.00021384]
[1743125457486,1.4132533,87268.0,87267.0,0.00021384]
[1743125460522,1.45517853,87268.0,87267.0,0.00021384]
[1743125461575,1.4132533,87268.0,87267.0,0.00021384]
[1743125464756,1.44963551,87268.0,87267.0,0.00021384]
[1743125464970,1.57410923,87268.0,87267.0,8.4e-07]
[1743125465157,1.21883423,87268.0,87267.0,8.4e-07]
[1743125465370,1.22342523,87268.0,87267.0,8.4e-07]
[1743125465714,1.22042523,87268.0,87267.0,8.4e-07]
[1743125465941,1.33168287,87268.0,87267.0,8.4e-07]
[1743125466142,1.33668287,87268.0,87267.0,8.4e-07]
[1743125467333,1.34068287,87268.0,87267.0,8.4e-07]
[1743125467548,1.19004302,87268.0,87267.0,8.4e-07]
[1743125467961,1.20801185,87268.0,87267.0,8.4e-07]
[1743125471890,1.20301185,87268.0,87267.0,8.4e-07]
[1743125472105,1.20401185,87268.0,87267.0,8.4e-07]
[1743125472503,1.32326949,87268.0,87267.0,8.4e-07]
[1743125472707,1.31826949,87268.0,87267.0,8.4e-07]
[1743125472915,1.31326949,87268.0,87267.0,8.4e-07]
[1743125473364,1.31826949,87268.0,87267.0,8.4e-07]
[1743125473685,1.32326949,87268.0,87267.0,8.4e-07]
[1743125473887,1.30530066,87268.0,87267.0,8.4e-07]
[1743125474654,1.30530066,87268.0,87267.0,0.00033964]
[1743125474889,5.79554366,87268.0,87267.0,0.00033964]
[1743125475406,5.65846466,87268.0,87267.0,0.00033964]
[1743125475770,5.42056466,87268.0,87267.0,0.00033964]
[1743125476924,5.43853385,87268.0,87267.0,0.00033964]
[1743125477724,5.43394285,87268.0,87267.0,0.00033964]
[1743125484036,5.40823285,87268.0,87267.0,0.00033964]
[1743125484900,5.08476785,87268.0,87267.0,0.00033964]
[1743125485109,1.72120317,87268.0,87267.0,0.00033964]
[1743125485339,1.59555017,87268.0,87267.0,0.00033964]
[1743125485749,1.59571967,87268.0,87267.0,0.00033964]
[1743125487050,1.61026052,87268.0,87267.0,0.00033964]
[1743125487285,5.13019916,87268.0,87267.0,0.00033964]
[1743125487486,5.00669753,87268.0,87267.0,0.00033964]
[1743125487639,4.67133853,87268.0,87267.0,0.00033964]
[1743125487846,2.09076004,87268.0,87267.0,0.00033964]
[1743125488071,1.71697604,87268.0,87267.0,0.00033964]
[1743125490670,1.06214904,87268.0,87267.0,0.00033964]
[1743125490895,2.46594204,87268.0,87267.0,0.00033964]
[1743125491481,2.21501504,87268.0,87267.0,0.00033964]
[1743125491850,2.09699204,87268.0,87267.0,0.00033964]
[1743125492217,1.96967204,87268.0,87267.0,0.00033964]
[1743125492471,2.09699204,87268.0,87267.0,0.00033964]
[1743125492989,2.02718304,87268.0,87267.0,0.00033964]
[1743125493299,1.97635904,87268.0,87267.0,0.00033964]
[1743125493586,1.87965504,87268.0,87267.0,0.00033964]
[1743125493970,1.86168667,87268.0,87267.0,0.00033964]
[1743125494169,1.73436667,87268.0,87267.0,0.00033964]
[1743125494374,1.86168667,87268.0,87267.0,0.00033964]
[1743125496792,1.19560224,87268.0,87267.0,0.00033964]
[1743125496965,0.89545724,87268.0,87267.0,0.00033964]
[1743125500888,0.75667924,87268.0,87267.0,0.00033964]
[1743125501102,0.75667924,87268.0,87267.0,0.07633964]
[1743125501312,0.99731624,87268.0,87267.0,0.07633964]
[1743125502436,0.99231624,87268.0,87267.0,0.07633964]
[1743125502612,0.98731624,87268.0,87267.0,0.07633964]
[1743125502817,0.98731624,87268.0,87267.0,0.00033964]
[1743125502968,2.00286988,87268.0,87267.0,0.00033964]
[1743125503181,1.86035888,87268.0,87267.0,0.00033964]
[1743125503564,1.86535888,87268.0,87267.0,0.00033964]
[1743125503775,1.97961652,87268.0,87267.0,0.00033964]
[1743125504660,2.01405999,87268.0,87267.0,0.00033964]
[1743125504816,2.02860084,87268.0,87267.0,0.00033964]
[1743125505659,1.9143432,87268.0,87267.0,0.00033964]
[1743125518207,1.17752742,87268.0,87267.0,0.00033964]
[1743125518350,4.77924642,87268.0,87267.0,0.00033964]
[1743125518550,4.74585742,87268.0,87267.0,0.00033964]
[1743125520413,4.77085742,87268.0,87267.0,6.4e-07]
[1743125520588,1.35316727,87268.0,87267.0,6.4e-07]
[1743125520794,1.35316727,87268.0,87244.0,0.0001695]
[1743125520795,0.540687,87250.0,87244.0,0.0001695]
[1743125521000,4.67578454,87250.0,87249.0,0.00028657]
[1743125521335,1.57899605,87250.0,87249.0,0.00028657]
[1743125521549,1.59696742,87250.0,87249.0,0.00028657]
[1743125522167,1.51453595,87250.0,87249.0,0.07918657]
[1743125522827,1.49422395,87250.0,87249.0,0.07918657]
[1743125523364,1.49422395,87250.0,87249.0,0.00028657]
[1743125523792,1.47625258,87250.0,87249.0,0.00028657]
[1743125523984,1.48025258,87250.0,87249.0,0.00028657]
[1743125524210,1.48433258,87250.0,87249.0,0.00028657]
[1743125524667,1.46588376,87250.0,87249.0,0.00028657]
[1743125525115,1.47469175,87250.0,87249.0,0.00028657]
[1743125525318,1.19686712,87250.0,87249.0,0.00028657]
[1743125525520,1.14599512,87250.0,87249.0,0.00028657]
[1743125525719,1.14599512,87250.0,87249.0,0.07888657]
[1743125526051,1.14599512,87250.0,87249.0,0.12798657]
[1743125526052,1.01859512,87250.0,87249.0,0.12798657]
[1743125526373,0.78936912,87250.0,87249.0,0.12798657]
[1743125526586,0.77790812,87250.0,87249.0,0.12798657]
[1743125526996,0.06054807,87250.0,87249.0,0.12798657]
[1743125527205,0.07200907,87250.0,87249.0,0.12798657]
[1743125527397,0.03047318,87250.0,87249.0,0.12798657]
[1743125527603,0.06127008,87250.0,87249.0,0.12798657]
[1743125528034,0.06127008,87250.0,87249.0,0.36867557]
[1743125528234,0.008,87250.0,87249.0,0.36867557]
[1743125528752,0.368415,87262.0,87249.0,0.36867557]
[1743125528753,0.1278,87263.0,87256.0,0.0491]
[1743125528989,0.3,87262.0,87260.0,0.0786]
[1743125529200,0.33079668,87262.0,87260.0,0.0786]
[1743125529398,0.55999068,87262.0,87260.0,0.0786]
[1743125529740,0.011459,87261.0,87260.0,0.0786]
[1743125530181,0.04225541,87261.0,87260.0,0.0786]
[1743125531967,0.04625541,87261.0,87260.0,0.0786]
[1743125532375,0.05125541,87261.0,87260.0,0.0786]
[1743125540086,0.03979641,87261.0,87260.0,0.0786]
[1743125540494,0.03979641,87261.0,87260.0,0.3078]
[1743125540840,0.03979641,87261.0,87260.0,0.31926]
[1743125541139,0.009,87261.0,87260.0,0.36866]
[1743125541662,0.3001695,87268.0,87266.0,0.229184]
[1743125541869,0.03104776,87267.0,87266.0,0.320543]
[1743125542068,0.0001695,87267.0,87266.0,0.369243]
[1743125543055,0.0041695,87267.0,87266.0,0.369243]
[1743125543366,0.0061695,87267.0,87266.0,0.369243]
[1743125543990,0.0061695,87267.0,87266.0,0.48350064]
[1743125544557,0.0021695,87267.0,87266.0,0.48350064]
[1743125544936,0.0041695,87267.0,87266.0,0.48350064]
[1743125545344,0.0021695,87267.0,87266.0,0.48350064]
[1743125545747,0.0011695,87267.0,87266.0,0.48350064]
[1743125545953,0.0021695,87267.0,87266.0,0.49421417]
[1743125547252,0.0011695,87267.0,87266.0,0.49421417]
[1743125547866,0.0001695,87267.0,87266.0,0.49421417]
[1743125550446,0.0001694,87290.0,87289.0,0.240579]
[1743125550671,0.0001694,87290.0,87289.0,0.369579]
[1743125550672,0.03114215,87290.0,87289.0,0.369579]
[1743125551812,0.03414215,87290.0,87289.0,0.369579]
[1743125552327,0.0061694,87290.0,87289.0,0.369579]
[1743125552952,0.0061694,87290.0,87289.0,0.48383664]
[1743125553563,0.0031694,87290.0,87289.0,0.48383664]
[1743125553976,0.0021694,87290.0,87289.0,0.48383664]
[1743125554379,0.0041694,87290.0,87289.0,0.48383664]
[1743125555326,0.0021694,87290.0,87289.0,0.48383664]
[1743125556187,0.0001694,87290.0,87289.0,0.48383664]
[1743125562418,0.0001694,87290.0,87289.0,0.49451156]
[1743125565099,0.0001694,87290.0,87289.0,0.49551156]
[1743125565434,0.0001694,87290.0,87289.0,0.49451156]
[1743125565629,0.0001694,87290.0,87289.0,0.47983156]
[1743125565834,0.0001694,87290.0,87289.0,0.48183156]
[1743125566037,0.0001694,87290.0,87289.0,0.49328756]
[1743125567752,0.0001694,87290.0,87289.0,0.49828756]
[1743125572519,0.0001694,87290.0,87289.0,0.49862636]
[1743125573798,0.0001695,87304.0,87303.0,0.240541]
[1743125574006,0.00021394,87304.0,87303.0,0.43599864]
[1743125576473,0.00121394,87304.0,87303.0,0.43599864]
[1743125577367,0.00121394,87304.0,87303.0,0.44667356]
[1743125578391,0.00121394,87304.0,87303.0,0.49207356]
[1743125579763,0.00021394,87304.0,87303.0,0.49207356]
[1743125580696,0.00021394,87304.0,87303.0,0.49307356]
[1743125581076,0.00021394,87304.0,87303.0,0.49207356]
[1743125581502,0.00021394,87304.0,87303.0,0.49407356]
[1743125581779,0.00021394,87304.0,87303.0,0.5167961]
[1743125582370,0.00021394,87304.0,87303.0,0.5157961]
[1743125582627,0.00021394,87304.0,87303.0,0.5167961]
[1743125583496,0.00021394,87304.0,87303.0,0.5157961]
[1743125583674,0.00021394,87304.0,87303.0,0.5167961]
[1743125584060,0.00021394,87304.0,87303.0,0.5157961]
[1743125584639,0.00021394,87304.0,87303.0,0.5147961]
[1743125584840,0.00021394,87304.0,87303.0,0.5157961]
[1743125585163,0.00021394,87304.0,87303.0,0.5167961]
[1743125585324,0.00021394,87304.0,87303.0,0.5157961]
[1743125585887,0.00021394,87304.0,87303.0,0.5167961]
[1743125586038,0.00021394,87304.0,87303.0,0.5217961]
[1743125586467,0.00021394,87304.0,87303.0,0.53633695]
[1743125592373,9.4e-07,87304.0,87303.0,0.53633695]
[1743125592606,9.4e-07,87304.0,87303.0,0.86133695]
[1743125592830,9.4e-07,87304.0,87303.0,0.89703521]
[1743125593485,9.4e-07,87304.0,87303.0,0.89603521]
[1743125593893,9.4e-07,87304.0,87303.0,0.86333695]
[1743125594094,9.4e-07,87304.0,87303.0,0.85933695]
[1743125594408,3.8e-07,87305.0,87304.0,0.18399485]
[1743125594607,3.8e-07,87305.0,87304.0,0.30054217]
[1743125594881,3.8e-07,87305.0,87304.0,0.29825249]
[1743125595262,3.8e-07,87305.0,87304.0,0.30892741]
[1743125596468,3.8e-07,87316.0,87315.0,0.38474785]
[1743125596669,3.8e-07,87316.0,87315.0,0.62688549]
[1743125598131,3.8e-07,87316.0,87315.0,0.63188549]
[1743125598416,3.8e-07,87316.0,87315.0,0.95122561]
[1743125598754,3.8e-07,87316.0,87315.0,0.95622561]
[1743125599498,0.002,87329.0,87328.0,0.38031285]
[1743125599641,0.002,87329.0,87328.0,1.08893049]
[1743125600246,0.0003392,87333.0,87330.0,0.245466]
[1743125600489,0.00078354,87331.0,87330.0,0.58462449]
[1743125600641,0.0003392,87333.0,87330.0,0.58462449]
[1743125600642,7.4e-07,87333.0,87332.0,0.01645]
[1743125600844,2e-08,87333.0,87332.0,0.22913768]
[1743125601149,2e-08,87333.0,87332.0,0.52913768]
[1743125601344,2e-08,87333.0,87332.0,0.52684849]
[1743125602413,2e-08,87333.0,87332.0,0.53284849]
[1743125603033,2e-08,87338.0,87337.0,0.1348]
[1743125603280,2e-08,87338.0,87337.0,0.57733641]
[1743125603486,2e-08,87338.0,87337.0,0.57504749]
[1743125604292,2e-08,87338.0,87337.0,0.57904749]
[1743125604526,2e-08,87338.0,87337.0,0.57504749]
[1743125604730,2e-08,87338.0,87337.0,0.58004749]
[1743125605149,2e-08,87338.0,87337.0,0.57504749]
[1743125605578,2e-08,87338.0,87337.0,0.59172241]
[1743125606050,2e-08,87338.0,87337.0,0.60536324]
[1743125606228,2e-08,87338.0,87337.0,0.60036324]
[1743125606581,2e-08,87338.0,87337.0,0.60536324]
[1743125607736,2e-08,87338.0,87337.0,0.63036324]
[1743125609162,5.2e-07,87350.0,87349.0,0.370114]
[1743125609317,5.2e-07,87350.0,87349.0,0.63011249]
[1743125610246,5.2e-07,87350.0,87349.0,0.641309]
[1743125610744,5.2e-07,87350.0,87349.0,0.65898392]
[1743125610959,5.2e-07,87350.0,87349.0,0.95898392]
[1743125612596,5.2e-07,87350.0,87349.0,0.98198315]
[1743125613491,5.2e-07,87350.0,87349.0,1.57610315]
[1743125618309,0.0001695,87355.0,87354.0,0.5454]
[1743125618510,3e-07,87356.0,87355.0,0.016447]
[1743125618721,3e-07,87356.0,87355.0,0.14753423]
[1743125619321,0.0772694,87378.0,87358.0,0.326889]
[1743125619322,3e-07,87359.0,87358.0,0.326889]
[1743125619521,3e-07,87359.0,87358.0,0.45568749]
[1743125621247,3e-07,87359.0,87358.0,0.47036241]
[1743125621441,3e-07,87359.0,87358.0,0.47536241]
[1743125621612,0.0739697,87385.0,87384.0,0.011443]
[1743125621851,0.07410301,87385.0,87384.0,0.35457464]
[1743125622029,0.10151269,87385.0,87384.0,0.35457464]
[1743125622644,0.07410301,87385.0,87384.0,0.35457464]
[1743125623618,0.00013331,87385.0,87384.0,0.35457464]
[1743125625419,0.00013331,87385.0,87384.0,0.36524956]
[1743125625625,0.00013331,87385.0,87384.0,0.38810827]
[1743125626496,0.00013331,87385.0,87384.0,0.39010827]
[1743125627031,0.00013331,87385.0,87384.0,0.39110827]
[1743125628966,3.1e-07,87385.0,87384.0,0.40564912]
[1743125629219,3.1e-07,87385.0,87384.0,0.41064912]
[1743125629590,3.1e-07,87385.0,87384.0,0.40864912]
[1743125629789,3.1e-07,87385.0,87384.0,0.40764912]
[1743125630066,3.1e-07,87385.0,87384.0,0.41064912]
[1743125630232,3.1e-07,87385.0,87384.0,0.41264912]
[1743125630448,3.1e-07,87385.0,87384.0,0.40764912]
[1743125630813,3.1e-07,87385.0,87384.0,0.41664912]
[1743125632543,0.002,87389.0,87388.0,0.240307]
[1743125632747,0.002,87389.0,87388.0,0.35456464]
[1743125633324,0.0001695,87393.0,87388.0,0.37410549]
[1743125633527,5e-07,87393.0,87392.0,0.57494049]
[1743125633732,5e-07,87393.0,87392.0,0.67494049]
[1743125634334,0.002,87419.0,87403.0,0.240266]
[1743125634579,0.002,87419.0,87403.0,0.49120364]
[1743125634970,0.002,87419.0,87403.0,0.50574449]
[1743125635762,5e-07,87404.0,87403.0,0.88294449]
[1743125636929,5e-07,87404.0,87403.0,0.8915255]
[1743125637229,5e-07,87404.0,87403.0,0.9005255]
[1743125637406,5e-07,87404.0,87403.0,0.91120042]
[1743125637570,5e-07,87404.0,87403.0,0.85693581]
[1743125639596,5e-07,87404.0,87403.0,0.84239496]
[1743125640171,5e-07,87404.0,87403.0,0.84231496]
[1743125640754,5e-07,87404.0,87403.0,1.43607496]
[1743125643195,5e-07,87404.0,87403.0,1.45561581]
[1743125643405,5e-07,87404.0,87403.0,1.53231581]
[1743125644994,5e-07,87404.0,87403.0,1.67861581]
[1743125645189,5e-07,87404.0,87403.0,1.70361581]
[1743125645835,5e-07,87404.0,87403.0,1.69961581]
[1743125646188,5e-07,87404.0,87403.0,1.70361581]
[1743125646384,0.002,87419.0,87418.0,0.240224]
[1743125646596,0.0024441,87419.0,87418.0,0.35448164]
[1743125648024,0.0024441,87419.0,87418.0,0.35948164]
[1743125648806,0.0024441,87419.0,87418.0,0.36348164]
[1743125649003,0.0024441,87419.0,87418.0,0.37802249]
[1743125649299,0.0024441,87419.0,87418.0,0.39369741]
[1743125649501,0.0808,87437.0,87436.0,0.240174]
[1743125649704,0.0453,87440.0,87437.0,0.011436]
[1743125649935,0.0003026,87438.0,87437.0,0.12569364]
[1743125650170,0.0003026,87438.0,87437.0,0.12798077]
[1743125651113,0.0003026,87438.0,87437.0,0.12798055]
[1743125651311,0.0003026,87438.0,87437.0,0.12569364]
[1743125651782,0.0003026,87438.0,87437.0,0.13636856]
[1743125652614,0.0813026,87438.0,87437.0,0.13636856]
[1743125652990,0.0813026,87438.0,87437.0,0.13736856]
[1743125653293,0.0813026,87438.0,87437.0,0.13936856]
[1743125653542,0.1266026,87438.0,87437.0,0.13936856]
[1743125654298,0.1266026,87438.0,87437.0,0.01367492]
[1743125654505,0.38592162,87438.0,87437.0,0.01367492]
[1743125654705,0.14575262,87438.0,87437.0,0.01367492]
[1743125655263,0.38592162,87438.0,87437.0,0.01367492]
[1743125655832,0.14575262,87438.0,87437.0,0.01367492]
[1743125656190,0.14575262,87438.0,87437.0,0.02511092]
[1743125656571,0.1266026,87438.0,87437.0,0.014436]
[1743125656771,0.14575262,87438.0,87437.0,0.014436]
[1743125658614,0.01945262,87438.0,87437.0,0.014436]
[1743125658867,0.01945262,87438.0,87437.0,0.12869364]
[1743125659070,0.0003026,87438.0,87437.0,0.13098069]
[1743125659707,0.0003026,87438.0,87437.0,0.13098053]
[1743125660728,0.0003026,87438.0,87437.0,0.13937068]
[1743125660963,0.0003026,87438.0,87437.0,0.14165753]
[1743125661187,0.0003026,87438.0,87437.0,0.13937068]
[1743125662318,0.0003026,87438.0,87437.0,0.14165751]
[1743125663339,0.0003026,87438.0,87437.0,0.13865751]
[1743125663513,0.0003026,87438.0,87437.0,0.14065751]
[1743125663658,0.0003026,87438.0,87437.0,0.14365751]
[1743125664114,0.0003026,87438.0,87437.0,0.14065751]
[1743125664312,0.0003026,87438.0,87437.0,0.13837068]